Cogmind - Beta 15 @@@ ROGUE MODE // 2025.06.21 @ 22:17:37 Player: Volvedor Result: Destroyed by G-34 Mercenary with Small Laser Performance ------------- Evolutions (0) 0 Regions Visited (1) 200 Robots Destroyed (26) 130 Value Destroyed (578) 578 Prototype IDs (0) 0 Alien Tech Used (0) 0 Bonus (0) 0 TOTAL SCORE: 908 Bonus ------- None Cogmind --------- Core Integrity 0/250 Matter 297/300 Energy 250/250 System Corruption 1% Temperature Cool (6) Movement Treading (240) Ox1 Location -10/Materials Parts ------- > --- POWER (1) -------- Ion Engine > --- PROPULSION (2) --- Light Treads Light Treads > --- UTILITY (2) ------ High-capacity Storage Unit Visual Processing Unit > --- WEAPON (2) ------- Light Assault Rifle > --- INVENTORY (20) --- Ion Engine Light Ion Engine Light Ion Engine Aluminum Leg Aluminum Leg Aluminum Leg Aluminum Leg Aluminum Leg Aluminum Leg Small Storage Unit Sensor Array Sensor Array Sensor Array Utility Shielding Tractor Beam Datajack Peak State ------------ > --- POWER ------------ Light Ion Engine > --- PROPULSION ------- Light Treads Light Treads > --- UTILITY ---------- High-capacity Storage Unit Visual Processing Unit > --- WEAPON ----------- Light Assault Rifle Mining Laser > --- INVENTORY -------- Ion Engine Light Ion Engine Aluminum Leg Aluminum Leg Small Storage Unit Sensor Array Sensor Array Sensor Array Tractor Beam Datajack [Rating: 9] Favorites ----------- Power Ion Engine Engine Ion Engine Propulsion Light Treads Treads Light Treads Leg Aluminum Leg Hover Unit Backup Propulsion I Utility Small Storage Unit Device Seismic Detector Storage Small Storage Unit Processor Visual Processing Unit Weapon Assault Rifle Energy Gun Medium Laser Ballistic Gun Assault Rifle Ballistic Cannon Light Cannon Special Weapon Mining Laser Build | -11 -10 ------- Run | Yrd Mat Slots Evolved . | . . Power . | . . Propulsion . | . . Utility . | . . Weapon . | . . Parts Attached 17 | 9 8 Power 4 | 2 2 Engine 4 | 2 2 Core . | . . Reactor . | . . Propulsion 3 | 2 1 Treads 2 | 2 . Leg 1 | . 1 Wheel . | . . Hover . | . . Flight . | . . Utility 4 | 2 2 Device 1 | 1 . Storage 2 | 1 1 Processor 1 | . 1 Hackware . | . . Protection . | . . Artifact . | . . Weapon 6 | 3 3 Energy Gun 1 | 1 . Energy Cannon . | . . Ballistic Gun 3 | 2 1 Ballistic Cannon 1 | . 1 Launcher . | . . Special Weapon 1 | . 1 Impact Weapon . | . . Slashing Weapon . | . . Piercing Weapon . | . . Special Melee Weapon . | . . Unidentified Prototypes . | . . Parts Lost 4 | . 4 Power . | . . Propulsion . | . . Utility 1 | . 1 Weapon 3 | . 3 Highest Loss Streak 1 | . 1 To Critical Strikes . | . . Average Backups 6 | 3 7 Power 1 | 1 2 Propulsion 2 | 1 2 Utility 1 | . 1 Weapon . | . . Tool/Special . | . . Unused Backups 15 | . 15 Power 2 | . 2 Propulsion 6 | . 6 Utility 6 | . 6 Weapon . | . . Tool/Special 1 | . 1 Average Slot Usage (%) 90 | . 90 Engine 14 | . 14 Treads 26 | . 26 Storage 14 | . 14 Processor 7 | . 7 Ballistic Gun 19 | . 19 Ballistic Cannon 2 | . 2 Special Weapon 2 | . 2 Peak Build Rating 9 | 7 9 Average Rating 6 | 5 7 On Entrance 3 | . 7 Naked Turns . | . . Heaviest Build 46 | 15 46 Greatest Support 40 | 40 40 Greatest Overweight (x) 2 | 2 1 Average Overweight (x) . | . . Largest Inventory Capacity 20 | 8 20 Average Capacity 10 | 7 10 Most Carried 16 | 5 16 Average Carried 6 | 3 7 Final Capacity 20 | 8 20 Final Carried 16 | 5 16 Class Distribution -------------------- 100% | Mutant Dominant Class ---------------- Mutant | -10/Materials Resources | -11 -10 ----------- Run | Yrd Mat Matter Collected 842 | 316 526 Remotely . | . . Salvage Created 869 | 167 702 Parts 48 | 11 37 Haulers Intercepted . | . . Recyclers Shooed 1 | . 1 Parts Field Recycled . | . . Retrieved Matter . | . . Parts Self-Destructed . | . . Prevented . | . . Kills | -11 -10 ------- Run | Yrd Mat Combat Hostiles Destroyed 18 | . 18 Guns 10 | . 10 Cannons 7 | . 7 AOE 1 | . 1 Classes Destroyed 6 | 3 3 Worker 2 | 2 . Tunneler 2 | 2 . Recycler 3 | 1 2 Watcher 1 | . 1 Swarmer 5 | . 5 Grunt 13 | . 13 Best Kill Streak 6 | 4 6 Combat Bots Only 5 | . 5 Max Kills in Single Turn 3 | 1 3 Gunslinging . | . . Exploded 1 | . 1 Melee . | . . Uniques/NPCs Destroyed . | . . Combat | -11 -10 -------- Run | Yrd Mat Hostile Shots Fired 130 | . 130 Missed 29 | . 29 Hits 101 | . 101 Projectile 101 | . 101 Critical Strikes 1 | . 1 Damage Taken 1109 | . 1109 Core 252 | . 252 Absorbed by Shields . | . . Regen/Repaired (Parts) 169 | . 169 Core Remaining (%) 100 | 100 . Volleys Fired 96 | 14 82 Largest 2 | 2 2 Hottest 100 | 40 100 Shots Fired 158 | 28 130 Gun 127 | 28 99 Cannon 24 | . 24 Launcher . | . . Special 7 | . 7 Kinetic 151 | 28 123 Thermal 7 | . 7 Explosive . | . . Electromagnetic . | . . Robot Hit Streak 10 | 4 10 Robot Miss Streak 3 | 2 3 Penetration Max . | . . Secondary Targets 1 | . 1 Max Gunslinging Chain 1 | . 1 Shots Hit Robots 95 | 16 79 Core Hits 34 | 6 28 Critical Kills . | . . Critical Parts Destroyed . | . . Critical Strikes 2 | . 2 Blast 2 | . 2 Melee Attacks . | . . Impact . | . . Slashing . | . . Piercing . | . . Sneak Attacks . | . . Combat Hostiles . | . . Follow-up Attacks . | . . Damage Inflicted 1514 | 220 1294 Guns 968 | 220 748 Cannons 288 | . 288 Explosions 258 | . 258 Melee . | . . Ramming . | . . Kinetic 1256 | 220 1036 Thermal . | . . Explosive 258 | . 258 Electromagnetic . | . . Impact . | . . Slashing . | . . Piercing . | . . Highest Corruption 1 | . 1 Average Corruption 1 | . 1 Corruption Purged . | . . Corruption Blocked . | . . Effects 2 | . 2 Data Loss (major) 1 | . 1 Misfires 1 | . 1 Overload Shots . | . . Overflow Damage 77 | . 77 Projectiles . | . . Explosions 77 | . 77 Melee . | . . Knockbacks 5 | . 5 Impact . | . . Kinetic 5 | . 5 Secondary . | . . Self-Inflicted Damage . | . . Shots . | . . Rammed . | . . Targets Rammed . | . . Kicked . | . . Crushed . | . . Highest Temperature 78 | . 78 Average Temperature 13 | . 13 Received Heat Transfer 549 | . 549 Siege Activations . | . . Martial Activations . | . . Shielding Activations . | . . Robots Disrupted . | . . Combat Hostiles . | . . Robots Corrupted . | . . Combat Hostiles . | . . Parts Fried . | . . Impact Corruptions . | . . Robots Melted . | . . Combat Hostiles . | . . Parts Melted . | . . Heat Transferred . | . . Parts Sabotaged . | . . Parts Stolen . | . . Parts Stripped . | . . Power Chain Reactions . | . . Alert | -11 -10 ------- Run | Yrd Mat Maximum Alert Level . | . . Low Security (%) 100 | 100 100 Level 1 . | . . Level 2 . | . . Level 3 . | . . Level 4 . | . . Level 5 . | . . High Security . | . . Max Security . | . . Peak Influence 164 | 10 164 Initial . | . . Average 59 | . 71 Influence Increases 556 | 25 531 Destroy 0b10 Robot/C 360 | . 360 Destroy 0b10 Robot/NC 40 | 25 15 Destroy Leader 72 | . 72 Successful Hack 18 | . 18 Disable Machine 15 | . 15 Destroy Structure 21 | . 21 Lose Combat Pursuer 30 | . 30 Influence Decreases 445 | 25 420 Time Decay 415 | 25 390 Lost Part 30 | . 30 Squads Dispatched 4 | . 4 Investigation 2 | . 2 Extermination . | . . Reinforcement 2 | . 2 Assault . | . . Garrison . | . . Intercept . | . . Searches Triggered . | . . Construction Impeded . | . . Haulers Reinforced . | . . Active Scanning Responses . | . . Cargo Convoy Interrupts . | . . Stealth | -11 -10 --------- Run | Yrd Mat Distress Signals 4 | . 4 Communications Jammed . | . . Distress Signals . | . . Times Spotted 37 | . 37 Peak Tracking Total 5 | . 5 Tactical Retreats 2 | . 2 Traps | -11 -10 ------- Run | Yrd Mat Traps Triggered 1 | . 1 Indirectly . | . . Trap Hack Attempts . | . . Triggered . | . . Disarmed . | . . Reprogrammed 4 | . 4 Reused . | . . Traps Extracted . | . . Installed . | . . Triggered . | . . Machines | -11 -10 ---------- Run | Yrd Mat Machines Disabled 1 | . 1 Max in Single Turn 1 | . 1 Machines Repaired . | . . Machines Dismantled . | . . Machines Sabotaged . | . . Overloaded Fab Kills . | . . Hacking | -11 -10 --------- Run | Yrd Mat Machines Accessed 3 | . 3 Terminals 1 | . 1 Fabricators . | . . Repair Stations 1 | . 1 Recycling Units 1 | . 1 Scanalyzers . | . . Garrison Access . | . . Total Hacks 15 | . 15 Successful 10 | . 10 Failed 5 | . 5 Catastrophic . | . . Database Lockouts . | . . Manual 3 | . 3 Terminals 3 | . 3 Fabricators . | . . Repair Stations 7 | . 7 Recycling Units 5 | . 5 Scanalyzers . | . . Garrison Access . | . . Terminal Hacks 2 | . 2 Level Access Points 1 | . 1 Reprogram Traps 1 | . 1 Fabricator Hacks . | . . Repair Station Hacks 5 | . 5 Scan Component 2 | . 2 Repair 2 | . 2 Refit 1 | . 1 Recycling Unit Hacks 3 | . 3 Recycle Component 1 | . 1 Process 1 | . 1 Report Inventory 1 | . 1 Scanalyzer . | . . Garrison Access Hacks . | . . Unauthorized Hacks . | . . Terminals . | . . Fabricators . | . . Repair Stations . | . . Recycling Units . | . . Scanalyzers . | . . Garrison Access . | . . Data Cores Recovered . | . . Used . | . . Hacking Detections 3 | . 3 Full Trace Events 2 | . 2 Feedback Events . | . . Feedback Blocked . | . . Robot Schematics Acquired . | . . Robots Built . | . . Authchips . | . . Time . | . . Total Robot Build Rating . | . . Part Schematics Acquired . | . . Parts Built . | . . Authchips . | . . Time . | . . Total Part Build Rating . | . . Parts Repaired 2 | . 2 Time 52 | . 52 Parts Recycled 1 | . 1 Recycled Matter 69 | . 69 Retrieved Matter . | . . Retrieved Components . | . . Parts Scanalyzed . | . . Part Schematics Acquired . | . . Parts Damaged . | . . Bothacking | -11 -10 ------------ Run | Yrd Mat Used RIF Installer . | . . Robots Hacked . | . . Non-combat . | . . Combat . | . . Robot Hacks Applied . | . . Relay Couplers Released . | . . Fabnet Peak Effective % . | . . Robots Rewired . | . . Allies Hacked . | . . Hacks Repelled . | . . Allies | -11 -10 -------- Run | Yrd Mat Total Allies . | . . Largest Group . | . . Highest-Rated Group . | . . Highest-Rated Ally . | . . Total Orders . | . . Ally Attacks . | . . Total Damage . | . . Kills . | . . Allies Corrupted . | . . Allies Melted . | . . Intel | -11 -10 ------- Run | Yrd Mat Active Infowar (turns) 742 | 84 658 Optics 617 | . 617 Seismic 125 | 84 41 Robot Analysis Total . | . . Derelict Logs Recovered . | . . Drone Launches . | . . Drone Recoveries . | . . Exploration | -11 -10 ------------- Run | Yrd Mat Turns Passed 1310 | 230 1080 Spaces Moved 521 | 70 451 Core 4 | 4 . Treads 504 | 66 438 Legs 7 | . 7 Wheels . | . . Hover 6 | . 6 Flight . | . . Fastest Speed 50 | 50 160 Average Speed 173 | 156 175 Slowest Speed 240 | 160 240 Overloaded Moves . | . . Propulsion Burnouts . | . . Robots Hopped . | . . Potential Cave-ins . | . . Cave-ins Triggered . | . . Exploration Rate (%) 34 | 5 64 Regions Visited 1 Branch Regions . Pre-discovered Areas . | . . Known Exits Taken . | . . Unknown Exits Taken 1 | 1 . Scrap Searched . | . . Spaces Dug 7 | . 7 Terrain Destroyed 27 | . 27 Melee . | . . Projectile 7 | . 7 AOE 20 | . 20 Terrain Rammed . | . . Walls Destroyed . | . . Machines Disabled . | . . Actions | -11 -10 --------- Run | Yrd Mat Total 754 | 158 596 Wait 89 | 61 28 Move 520 | 69 451 Hop . | . . Pick Up 20 | 5 15 Fast Attach 11 | 7 4 Attach 1 | . 1 Detach . | . . Swap 10 | 2 8 Drop 7 | . 7 Fire 96 | 14 82 Melee . | . . Ram . | . . Kick . | . . Crush . | . . Escape Stasis . | . . Rewire . | . . Trap . | . . Miscellaneous . | . . Route ------- -11/Scrapyard -10/Materials (discovered 3 exits: *Mat x3) History --------- Turn | Location | Event 12 | -11/Scrapyard | Discovered new exit (range 16) 231 | -11/Scrapyard | Entered Materials 308 | -10/Materials | Build established: Mutant 578 | -10/Materials | Discovered new exit (range 16) 825 | -10/Materials | Discovered new exit (range 17) 844 | -10/Materials | Identified exit to Materials 924 | -10/Materials | Repaired Lgt. Treads 936 | -10/Materials | Core integrity fell below 50% 951 | -10/Materials | Repaired Lgt. Treads? 1162 | -10/Materials | Core integrity fell below 20% 1311 | -10/Materials | Destroyed by G-34 Mercenary with Small Laser Last Messages --------------- 01149_ Triggered Shock Trap. 01149_ The floor emits a surge of raw power. 01149_ System corrupted (+1). 01152_ U-05 Engineer lays Concrete. 01153_ U-05 Engineer builds a Wall. 01188_ Mining Laser destroyed. 01189_ System corrupted: FCS attempts to trigger Lgt. Assault Rifle. 01189_ System corrupted: Lgt. Assault Rifle misfires. 01199_ G-34 Mercenary destroyed. 01215_ Acquired 48 matter. 01217_ Dropped Lgt. Ion Engine. 01220_ Acquired Aluminum Leg. 01230_ R-06 Scavenger collects Heat Sink. 01233_ R-06 Scavenger collects Ion Engine. 01235_ Acquired Aluminum Leg. 01237_ R-06 Scavenger collects Lgt. Ion Engine. 01281_ W-16 Scout sends out distress signal. 01305_ System corrupted: Substantial component data lost. Map ----- +----------------------------------------------------+ | | | | | | | | | | | | | | | | | | | ???????????????#############?????????????????????? | | ???????????????# #?????????????????????? | | ???????????????# #?????????????????????? | | ???????????????# #?????????????????????? | | ???????????????# #?????????????????????? | | ???????????????# #?????????????????????? | | ???????????????# #?????????????????????? | | ???????????????# % #?????????????????????? | | ???????????????##+###+######????????????????###### | | ????????????????# ###########??????????# """ | | ????????????????# # ############ """" | | ????????????????#^^^ ^ # !! # # # """" | | ????????????????# # ! # <%# =""" # """" | | ????????????????# # ! # %#= R" # """ | | ????????????????# # # %+%*""" # | | ????????????????# # # %=#[ # | | ????????????????# g @ # # = # | | ????????????????# ########### ######## | | ??????????????### ###"T"####+# | | ?????? | | ????? | | ?????? | | ??????######### | | ??????????????# ############### | | ????????????? + ??????????????# """ """ | | ??????????? # ??????????????# """"""""" | | ??????????"Y"?# ??????????????# """"" | | ??????????""??# ???????????????# * | | ??????????????# ????????????????# | | ??????????????#?????????????????# = | | ????????????????????????????????# ###+#### | | ????????????????????????????????# # * =%## | | ????????????????????????????????# # ##!!==! | | ????????????????????????????????# # """ ##!!== | | ????????????????????????????????# # """ ####### | | ????????????????????????????????# # """ #?????? | | ????????????????????????????????# # """ #?????? | | ????????????????????????????????# # """ #?????? | | ????????????????????????????????# # #?????? | | ????????????????????????????????# ############# | | ????????????????????????????????# | +----------------------------------------------------+ Best States ------------- Heat Dissipation 25 Energy Generation 10 Energy Capacity 250 Matter Stores 300 Matter Capacity 300 Sight Range 18 Terrain Scan Density 10 Evasion (%) 40 Recoil Reduction 2 Item Schematics ----------------- None Robot Schematics ------------------ None Fabricated ------------ Nothing Repaired ---------- Lgt. Treads | 39% | -10/Materials Lgt. Treads | 40% | -10/Materials Alien Tech Used ----------------- None Achievements -------------- None Challenges ------------ None Game ------ Seed IonSwordModule Manual? 0 Play Time 00:11:59 Cumulative 30.0 hours Start 2025.06.21 @ 22:05:41 End 2025.06.21 @ 22:17:37 Sessions 1 Manual Loads 0 Difficulty Rogue Special Mode None Game No. 29 Rogue 29 Adventurer 0 Explorer 0 Win Type - Total 0 Types 0/0/0/0/0/0/0/0/0/0 Lore% 21 Gallery% 22 Achievement% 17 Wizard Run 0 Options --------- Layout 2 ASCII 0 Keyboard 0 Movement Mouse Keybinds 0 Fullscreen 1 Font 16/TerminusCaps Map View 27x23 Zoom Use 82% Tactical HUD 1 Map Filters NONE Filters NONE Steam 1 RUN: 88b58dbd-635b-41fa-895f-2de7b298274f